fUST/lending_fUST_20250911
["ID","MTS","AMOUNT","RATE_DAILY","PERIOD"]
[384810729,1757568637495,-500.0,0.00013873,2]
[384810731,1757568637504,-500.0,0.00013873,2]
[384810734,1757568637514,-500.0,0.00013873,2]
[384810736,1757568637523,-500.93845016,0.00013873,2]
[384810738,1757568637532,-500.0,0.00013873,2]
[384810740,1757568637542,-500.0,0.00013873,2]
[384810742,1757568637551,-500.74369775,0.00013873,2]
[384810744,1757568637559,-500.0,0.00013894,2]
[384810746,1757568637568,-486.84445594,0.00013894,2]
[384810748,1757568637579,-480.0,0.00013894,2]
[384810750,1757568637592,-480.0,0.00013894,2]
[384810752,1757568637600,-480.0,0.00013894,2]
[384810753,1757568637610,-480.0,0.00013894,2]
[384810755,1757568637618,-480.0,0.00013894,2]
[384810758,1757568637628,-480.0,0.00013894,2]
[384810760,1757568637637,-480.0,0.00013894,2]
[384810762,1757568637646,-480.0,0.00013894,2]
[384810763,1757568637655,-480.0,0.00013894,2]
[384810765,1757568637665,-384.54501706,0.00013894,2]
[384810767,1757568637674,-486.19027202,0.00013894,2]
[384810770,1757568637683,-483.34596185,0.00013894,2]
[384810772,1757568637692,-484.10893611,0.00013894,2]
[384810774,1757568637703,-480.0,0.00013894,2]
[384810776,1757568637711,-480.0,0.00013894,2]
[384810778,1757568637720,-480.0,0.00013894,2]
[384810780,1757568637729,-480.0,0.00013894,2]
[384810782,1757568637738,-480.0,0.00013894,2]
[384810784,1757568637747,-480.0,0.00013894,2]
[384810786,1757568637756,-480.0,0.00013894,2]
[384810788,1757568637765,-480.0,0.00013894,2]
[384810790,1757568637774,-480.0,0.00013894,2]
[384810792,1757568637783,-480.0,0.00013894,2]
[384810794,1757568637792,-480.0,0.00013894,2]
[384810796,1757568637801,-480.0,0.00013894,2]
[384810798,1757568637810,-480.0,0.00013894,2]
[384810800,1757568637819,-480.0,0.00013894,2]
[384810802,1757568637829,-480.0,0.00013894,2]
[384810804,1757568637838,-480.0,0.00013894,2]
[384810806,1757568637847,-480.0,0.00013894,2]
[384810807,1757568637856,-483.5146039,0.00013894,2]
[384810810,1757568637865,-480.0,0.00013894,2]
[384810812,1757568637874,-480.0,0.00013894,2]
[384810814,1757568637884,-480.0,0.00013894,2]
[384810816,1757568637893,-480.0,0.00013894,2]
[384810818,1757568637902,-480.0,0.00013894,2]
[384810820,1757568637911,-480.0,0.00013894,2]
[384810822,1757568637920,-480.0,0.00013894,2]
[384810823,1757568637930,-480.0,0.00013894,2]
[384810825,1757568637940,-480.0,0.00013894,2]
[384810828,1757568637949,-484.22890191,0.00013894,2]
[384810829,1757568637959,-480.0,0.00013894,2]
[384810831,1757568637969,-480.0,0.00013894,2]
[384810832,1757568637979,-480.0,0.00013894,2]
[384810833,1757568637988,-480.50465226,0.00013894,2]
[384810834,1757568637998,-480.0,0.00013894,2]
[384810835,1757568638007,-480.0,0.00013894,2]
[384810836,1757568638017,-483.08333206,0.00013894,2]
[384810837,1757568638134,-482.91777393,0.00013894,2]
[384810838,1757568638144,-588.81644419,0.00013894,2]
[384810839,1757568638154,-480.0,0.00013894,2]
[384810840,1757568638163,-480.0,0.00013894,2]
[384810841,1757568638173,-480.28481538,0.00013894,2]
[384810842,1757568638183,-480.0,0.00013894,2]
[384810843,1757568638192,-480.0,0.00013894,2]
[384810844,1757568638202,-480.0,0.00013894,2]
[384810845,1757568638212,-480.0,0.00013894,2]
[384810846,1757568638221,-480.0,0.00013894,2]
[384810847,1757568638232,-485.56106046,0.00013894,2]
[384810848,1757568638241,-480.70719399,0.00013894,2]
[384810849,1757568638250,-354.36010964,0.00013894,2]
[384810850,1757568638260,-480.0,0.00013894,2]
[384810851,1757568638270,-480.0,0.00013894,2]
[384810852,1757568638279,-483.92229367,0.00013894,2]
[384810853,1757568638289,-480.0,0.00013894,2]
[384810854,1757568638298,-480.31255757,0.00013894,2]
[384810855,1757568638308,-481.75151859,0.00013894,2]
[384810856,1757568638318,-303.73114497,0.00013894,2]
[384810857,1757568638328,-480.0,0.00013894,2]
[384810858,1757568638337,-266.201596,0.00013894,2]
[384810859,1757568638347,-480.0,0.00013894,2]
[384810860,1757568638356,-480.0,0.00013894,2]
[384810861,1757568638365,-482.07111965,0.00013894,2]
[384810862,1757568638374,-480.08230355,0.00013894,2]
[384810863,1757568638384,-480.0,0.00013894,2]
[384810864,1757568638393,-480.0,0.00013894,2]
[384810865,1757568638402,-480.0,0.00013894,2]
[384810866,1757568638411,-480.0,0.00013894,2]
[384810867,1757568638420,-480.0,0.00013894,2]
[384810868,1757568638430,-480.0,0.00013894,2]
[384810869,1757568638439,-476.77142918,0.00013894,2]
[384810870,1757568638448,-480.0,0.00013894,2]
[384810871,1757568638458,-487.17993634,0.00013894,2]
[384810872,1757568638468,-480.0,0.00013894,2]
[384810873,1757568638477,-484.60458836,0.00013894,2]
[384810875,1757568638487,-480.0,0.00013894,2]
[384810876,1757568638496,-480.0,0.00013894,2]
[384810877,1757568638505,-480.0,0.00013894,2]
[384810878,1757568638514,-375.56558168,0.00013894,2]
[384810879,1757568638523,-480.0,0.00013894,2]
[384810880,1757568638533,-480.0,0.00013894,2]
[384810881,1757568638542,-480.0,0.00013894,2]
[384810882,1757568638551,-481.19559174,0.00013894,2]
[384810884,1757568638560,-151.0,0.00013894,2]
[384810885,1757568638569,-486.59698688,0.00013894,2]
[384810887,1757568638581,-480.0,0.00013894,2]
[384810890,1757568638591,-480.0,0.00013894,2]
[384810891,1757568638600,-480.0,0.00013894,2]
[384810894,1757568638610,-480.0,0.00013894,2]
[384810896,1757568638620,-480.0,0.00013894,2]
[384810898,1757568638629,-151.0,0.00013894,2]
[384810900,1757568638638,-151.0,0.00013894,2]
[384810902,1757568638649,-482.80788108,0.00013894,2]
[384810904,1757568638659,-480.0,0.00013894,2]
[384810906,1757568638668,-315.989665,0.00013894,2]
[384810908,1757568638678,-315.989665,0.00013894,2]
[384810910,1757568638687,-315.989665,0.00013894,2]
[384810912,1757568638696,-315.989665,0.00013894,2]
[384810914,1757568638705,-480.0,0.00013894,2]
[384810916,1757568638714,-480.0,0.00013894,2]
[384810918,1757568638723,-480.0,0.00013894,2]
[384810920,1757568638733,-480.0,0.00013894,2]
[384810922,1757568638742,-485.03192969,0.00013894,2]
[384810924,1757568638752,-480.0,0.00013894,2]
[384810926,1757568638761,-480.0,0.00013894,2]
[384810928,1757568638770,-480.0,0.00013894,2]
[384810930,1757568638778,-151.0,0.00013894,2]
[384810932,1757568638787,-480.0,0.00013894,2]
[384810933,1757568638796,-151.0,0.00013894,2]
[384810935,1757568638805,-184.322186,0.00013894,2]
[384810938,1757568638814,-480.0,0.00013894,2]
[384810940,1757568638824,-482.41298041,0.00013894,2]
[384810942,1757568638833,-480.0,0.00013894,2]
[384810944,1757568638843,-480.0,0.00013894,2]
[384810946,1757568638852,-480.0,0.00013894,2]
[384810948,1757568638861,-480.0,0.00013894,2]
[384810950,1757568638871,-161.443448,0.00013894,2]
[384810952,1757568638880,-481.51695327,0.00013894,2]
[384810954,1757568638889,-480.0,0.00013894,2]
[384810956,1757568638898,-480.0,0.00013894,2]
[384810958,1757568638907,-159.366818,0.00013894,2]
[384810960,1757568638916,-480.0,0.00013894,2]
[384810962,1757568638925,-480.91805801,0.00013894,2]
[384810964,1757568638934,-480.0,0.00013894,2]
[384810966,1757568638943,-480.0,0.00013894,2]
[384810968,1757568638953,-480.0,0.00013894,2]
[384810970,1757568638962,-480.0,0.00013894,2]
[384810972,1757568638972,-151.0,0.00013894,2]
[384810974,1757568638982,-480.0,0.00013894,2]
[384810976,1757568638991,-480.0,0.00013894,2]
[384810978,1757568639001,-482.55117865,0.00013894,2]
[384810980,1757568639010,-482.22805861,0.00013894,2]
[384810982,1757568639019,-151.0,0.00013894,2]
[384810984,1757568639028,-480.0,0.00013894,2]
[384810986,1757568639038,-1016.183019,0.00013894,2]
[384810988,1757568639047,-1016.183019,0.00013894,2]
[384810990,1757568639061,-480.0,0.00013894,2]
[384810993,1757568639074,-1016.183019,0.00013894,2]
[384810995,1757568639084,-1016.183019,0.00013894,2]
[384810996,1757568639093,-412.15623261,0.00013894,2]
[384810999,1757568639104,-224.58385,0.00013894,2]
[384811001,1757568639114,-151.0,0.00013894,2]
[384811003,1757568639123,-480.0,0.00013894,2]
[384811005,1757568639132,-189.3908341,0.00013894,2]
[384811006,1757568639142,-224.58385,0.00013894,2]
[384811007,1757568639151,-224.58385,0.00013894,2]
[384811008,1757568639160,-480.0,0.00013894,2]
[384811009,1757568639169,-151.0,0.00013894,2]
[384811010,1757568639179,-224.58385,0.00013894,2]
[384811011,1757568639188,-549.38,0.00013894,2]
[384811012,1757568639197,-500.0,0.00013894,2]
[384811013,1757568639207,-229.93424994,0.00013894,2]
[384811014,1757568639216,-480.0,0.00013894,2]
[384811015,1757568639225,-151.0,0.00013894,2]
[384811016,1757568639235,-151.0,0.00013894,2]
[384811017,1757568639244,-151.0,0.00013894,2]
[384811018,1757568639254,-480.0,0.00013894,2]
[384811019,1757568639263,-480.0,0.00013894,2]
[384811020,1757568639273,-414.79261672,0.00013894,2]
[384811021,1757568639282,-481.31662452,0.00013894,2]
[384811022,1757568639291,-480.0,0.00013894,2]
[384811023,1757568639301,-152.129543,0.00013894,2]
[384811024,1757568639310,-480.0,0.00013894,2]
[384811025,1757568639319,-151.626849,0.00013894,2]
[384811026,1757568639329,-480.0,0.00013894,2]
[384811027,1757568639338,-480.0,0.00013894,2]
[384811028,1757568639347,-151.0,0.00013894,2]
[384811029,1757568639356,-480.0,0.00013894,2]
[384811030,1757568639366,-640.63,0.00013894,2]
[384811031,1757568639375,-151.0,0.00013894,2]
[384811032,1757568639384,-480.0,0.00013894,2]
[384811033,1757568639393,-151.0,0.00013894,2]
[384811034,1757568639402,-1000.0,0.00013894,2]
[384811035,1757568639411,-151.882926,0.00013894,2]
[384811036,1757568639421,-178.733989,0.00013894,2]
[384811037,1757568639430,-285.533945,0.00013894,2]
[384811038,1757568639439,-480.0,0.00013894,2]
[384811039,1757568639448,-480.0,0.00013894,2]
[384811040,1757568639457,-480.0,0.00013894,2]
[384811041,1757568639467,-480.0,0.00013894,2]
[384811042,1757568639476,-480.0,0.00013894,2]
[384811043,1757568639486,-178.23891,0.00013894,2]
[384811044,1757568639496,-482.27507791,0.00013894,2]
[384811045,1757568639505,-178.23891,0.00013894,2]
[384811046,1757568639514,-178.23891,0.00013894,2]
[384811047,1757568639524,-178.23891,0.00013894,2]
[384811048,1757568639533,-564.27785188,0.00013894,2]
[384811049,1757568639542,-481.57074539,0.00013894,2]
[384811050,1757568639551,-480.0,0.00013894,2]
[384811051,1757568639561,-151.0,0.00013894,2]
[384811052,1757568639570,-151.0,0.00013894,2]
[384811053,1757568639581,-973.422043,0.00013894,2]
[384811054,1757568639592,-973.422043,0.00013894,2]
[384811055,1757568639601,-973.422043,0.00013894,2]
[384811056,1757568639610,-973.422043,0.00013894,2]
[384811057,1757568639619,-545.27,0.00013894,2]
[384811058,1757568639629,-545.27,0.00013894,2]
[384811059,1757568639638,-482.67256219,0.00013894,2]
[384811060,1757568639647,-480.0,0.00013894,2]
[384811061,1757568639657,-480.0,0.00013894,2]
[384811062,1757568639666,-480.0,0.00013894,2]
[384811063,1757568639675,-481.24024875,0.00013894,2]
[384811064,1757568639685,-151.0,0.00013894,2]
[384811065,1757568639694,-480.0,0.00013894,2]
[384811066,1757568639703,-151.0,0.00013894,2]
[384811067,1757568639712,-151.0,0.00013894,2]
[384811068,1757568639721,-151.0,0.00013894,2]
[384811069,1757568639732,-480.0,0.00013894,2]
[384811070,1757568639741,-480.0,0.00013894,2]
[384811071,1757568639751,-208.126077,0.00013894,2]
[384811072,1757568639760,-151.0,0.00013894,2]
[384811073,1757568639769,-155.955929,0.00013894,2]
[384811074,1757568639778,-1899.36,0.00013894,2]
[384811075,1757568639787,-151.0,0.00013894,2]
[384811076,1757568639796,-480.0,0.00013894,2]
[384811077,1757568639805,-481.88885126,0.00013894,2]
[384811078,1757568639814,-151.0,0.00013894,2]
[384811079,1757568639823,-486.4768629,0.00013894,2]
[384811080,1757568639833,-151.0,0.00013894,2]
[384811081,1757568639842,-617.51851328,0.00013894,2]
[384811082,1757568639851,-151.0,0.00013894,2]
[384811083,1757568639861,-480.0,0.00013894,2]
[384811084,1757568639871,-151.0,0.00013894,2]
[384811085,1757568639880,-151.0,0.00013894,2]
[384811086,1757568639890,-151.0,0.00013894,2]
[384811087,1757568639899,-480.0,0.00013894,2]
[384811088,1757568639910,-151.0,0.00013894,2]
[384811089,1757568639920,-179.668161,0.00013894,2]
[384811090,1757568639930,-482.82983052,0.00013894,2]
[384811091,1757568639939,-179.668161,0.00013894,2]
[384811092,1757568639948,-482.58864453,0.00013894,2]
[384811093,1757568639958,-179.668161,0.00013894,2]
[384811094,1757568639967,-179.668161,0.00013894,2]
[384811095,1757568639976,-480.0,0.00013894,2]
[384811096,1757568639986,-480.0,0.00013894,2]
[384811097,1757568639995,-601.606064,0.00013894,2]
[384811098,1757568640005,-601.606064,0.00013894,2]
[384811099,1757568640014,-601.606064,0.00013894,2]
[384811100,1757568640023,-601.606064,0.00013894,2]
[384811101,1757568640033,-356.33290689,0.00013894,2]
[384811102,1757568640042,-480.0,0.00013894,2]
[384811103,1757568640052,-480.0,0.00013894,2]
[384811104,1757568640061,-151.0,0.00013894,2]
[384811105,1757568640071,-481.19413811,0.00013894,2]
[384811106,1757568640081,-480.0,0.00013894,2]
[384811107,1757568640091,-151.0,0.00013894,2]
[384811108,1757568640100,-151.0,0.00013894,2]
[384811109,1757568640110,-480.58361139,0.00013894,2]
[384811110,1757568640119,-151.0,0.00013894,2]
[384811112,1757568640129,-199.804758,0.00013894,2]
[384811114,1757568640138,-151.0,0.00013894,2]
[384811116,1757568640148,-483.33861647,0.00013894,2]
[384811119,1757568640158,-481.66624066,0.00013894,2]
[384811121,1757568640167,-151.0,0.00013894,2]
[384811122,1757568640177,-151.0,0.00013894,2]
[384811123,1757568640187,-480.0,0.00013894,2]
[384811124,1757568640196,-480.0,0.00013894,2]
[384811125,1757568640206,-464.13852138,0.00013894,2]
[384811126,1757568640216,-298.227995,0.00013894,2]
[384811127,1757568640226,-298.227995,0.00013894,2]
[384811128,1757568640235,-274.84797529,0.00013894,2]
[384811129,1757568640244,-298.227995,0.00013894,2]
[384811130,1757568640253,-480.0,0.00013894,2]
[384811131,1757568640263,-298.227995,0.00013894,2]
[384811132,1757568640272,-480.0,0.00013894,2]
[384811133,1757568640282,-151.0,0.00013894,2]
[384811134,1757568640292,-151.0,0.00013894,2]
[384811135,1757568640302,-481.00722938,0.00013894,2]
[384811136,1757568640311,-151.0,0.00013894,2]
[384811137,1757568640320,-480.0,0.00013894,2]
[384811138,1757568640329,-480.0,0.00013894,2]
[384811139,1757568640338,-480.0,0.00013894,2]
[384811140,1757568640347,-480.0,0.00013894,2]
[384811141,1757568640356,-480.0,0.00013894,2]
[384811142,1757568640366,-480.0,0.00013894,2]
[384811143,1757568640375,-481.05453266,0.00013894,2]
[384811144,1757568640475,-480.0,0.00013894,2]
[384811145,1757568640485,-156.558217,0.00013894,2]
[384811146,1757568640494,-487.84978622,0.00013894,2]
[384811147,1757568640503,-482.06593558,0.00013894,2]
[384811148,1757568640513,-480.0,0.00013894,2]
[384811149,1757568640522,-480.0,0.00013894,2]
[384811150,1757568640531,-485.15834699,0.00013894,2]
[384811151,1757568640540,-480.0,0.00013894,2]
[384811152,1757568640550,-480.0,0.00013894,2]
[384811153,1757568640559,-193.206233,0.00013894,2]
[384811154,1757568640568,-324.60338942,0.00013894,2]
[384811155,1757568640578,-193.206233,0.00013894,2]
[384811156,1757568640589,-485.18719777,0.00013894,2]
[384811157,1757568640599,-189.44878417,0.00013894,2]
[384811158,1757568640608,-193.206233,0.00013894,2]
[384811159,1757568640617,-448.92406338,0.00013894,2]
[384811160,1757568640629,-313.39340928,0.00013894,2]
[384811161,1757568640638,-193.206233,0.00013894,2]
[384811162,1757568640647,-198.54905365,0.00013894,2]
[384811163,1757568640656,-480.0,0.00013894,2]
[384811164,1757568640667,-492.71168021,0.00013894,2]
[384811165,1757568640677,-481.17891368,0.00013894,2]
[384811166,1757568640687,-480.0,0.00013894,2]
[384811167,1757568640696,-480.0,0.00013894,2]
[384811168,1757568640705,-480.76141785,0.00013894,2]
[384811169,1757568640714,-161.592009,0.00013895,2]
[384811170,1757568640723,-151.217977,0.00013895,2]
[384811171,1757568640731,-151.401578,0.00013895,2]
[384811172,1757568640741,-480.0,0.00013895,2]
[384811173,1757568640751,-480.0,0.00013895,2]
[384811174,1757568640760,-480.0,0.00013895,2]
[384811175,1757568640770,-152.123823,0.00013895,2]
[384811176,1757568640779,-151.745988,0.00013895,2]
[384811177,1757568640789,-151.0,0.00013895,2]
[384811178,1757568640799,-151.0,0.00013895,2]
[384811179,1757568640808,-480.0,0.00013895,2]
[384811180,1757568640817,-211.760078,0.00013895,2]
[384811181,1757568640826,-480.0,0.00013895,2]
[384811182,1757568640835,-480.0,0.00013895,2]
[384811183,1757568640845,-151.0,0.00013895,2]
[384811184,1757568640854,-480.0,0.00013895,2]
[384811185,1757568640863,-480.0,0.00013895,2]
[384811186,1757568640872,-481.63427728,0.00013895,2]
[384811187,1757568640881,-480.0,0.00013895,2]
[384811188,1757568640891,-480.0,0.00013895,2]
[384811189,1757568640900,-151.0,0.00013895,2]
[384811190,1757568640909,-315.989665,0.00013895,2]
[384811191,1757568640918,-315.989665,0.00013895,2]
[384811192,1757568640928,-315.989665,0.00013895,2]
[384811193,1757568640937,-315.989665,0.00013895,2]
[384811194,1757568640946,-448.78228597,0.00013895,2]
[384811195,1757568640956,-151.0,0.00013895,2]
[384811196,1757568640965,-151.0,0.00013895,2]
[384811197,1757568640975,-480.0,0.00013895,2]
[384811198,1757568640985,-480.0,0.00013895,2]
[384811199,1757568640994,-480.0,0.00013895,2]
[384811200,1757568641004,-480.0,0.00013895,2]
[384811201,1757568641013,-480.0,0.00013895,2]
[384811202,1757568641023,-480.0,0.00013895,2]
[384811203,1757568641033,-480.0,0.00013895,2]
[384811204,1757568641042,-480.82672866,0.00013895,2]
[384811205,1757568641051,-480.0,0.00013895,2]
[384811206,1757568641061,-487.46156561,0.00013895,2]
[384811207,1757568641071,-480.0,0.00013895,2]
[384811208,1757568641080,-480.0,0.00013895,2]
[384811209,1757568641089,-480.0,0.00013895,2]
[384811210,1757568641099,-151.303578,0.00013895,2]
[384811211,1757568641108,-480.0,0.00013895,2]
[384811212,1757568641117,-480.0,0.00013895,2]
[384811213,1757568641126,-151.0,0.00013895,2]
[384811214,1757568641135,-1016.183019,0.00013895,2]
[384811215,1757568641144,-1016.183019,0.00013895,2]
[384811216,1757568641153,-1016.183019,0.00013895,2]
[384811217,1757568641163,-1016.183019,0.00013895,2]
[384811218,1757568641172,-480.0,0.00013895,2]
[384811219,1757568641181,-224.58385,0.00013895,2]
[384811220,1757568641191,-151.0,0.00013895,2]
[384811221,1757568641200,-224.58385,0.00013895,2]
[384811222,1757568641209,-224.58385,0.00013895,2]
[384811223,1757568641218,-151.0,0.00013895,2]
[384811224,1757568641228,-224.58385,0.00013895,2]
[384811225,1757568641237,-492.91791392,0.00013895,2]
[384811226,1757568641247,-151.0,0.00013895,2]
[384811227,1757568641256,-151.0,0.00013895,2]
[384811228,1757568641265,-151.0,0.00013895,2]
[384811229,1757568641274,-480.0,0.00013895,2]
[384811230,1757568641283,-480.0,0.00013895,2]
[384811231,1757568641292,-157.571872,0.00013895,2]
[384811232,1757568641301,-151.0,0.00013895,2]
[384811233,1757568641311,-151.0,0.00013895,2]
[384811234,1757568641320,-480.0,0.00013895,2]
[384811235,1757568641330,-480.0,0.00013895,2]
[384811236,1757568641339,-480.0,0.00013895,2]
[384811237,1757568641348,-178.23891,0.00013895,2]
[384811238,1757568641357,-178.23891,0.00013895,2]
[384811239,1757568641367,-178.23891,0.00013895,2]
[384811240,1757568641376,-178.23891,0.00013895,2]
[384811241,1757568641385,-480.0,0.00013895,2]
[384811242,1757568641394,-151.0,0.00013895,2]
[384811243,1757568641403,-151.0,0.00013895,2]
[384811244,1757568641411,-758.08566359,0.00013895,2]
[384811245,1757568641479,-480.0,0.00013894,2]
[384811246,1757568641490,-215.33637941,0.00013895,2]
[384811247,1757568641499,-973.422043,0.00013895,2]
[384811248,1757568641508,-973.422043,0.00013895,2]
[384811249,1757568641516,-480.93031567,0.00013895,2]
[384811250,1757568641528,-492.49172733,0.00013895,2]
[384811251,1757568641537,-480.0,0.00013895,2]
[384811252,1757568641546,-480.0,0.00013895,2]
[384811253,1757568641555,-151.0,0.00013895,2]
[384811254,1757568641563,-151.0,0.00013895,2]
[384811255,1757568641572,-151.0,0.00013895,2]
[384811256,1757568641585,-151.0,0.00013895,2]
[384811257,1757568641596,-161.324593,0.00013895,2]
[384811258,1757568641606,-151.0,0.00013895,2]
[384811259,1757568641615,-151.0,0.00013895,2]
[384811260,1757568641626,-151.0,0.00013895,2]
[384811261,1757568641636,-151.0,0.00013895,2]
[384811262,1757568641645,-151.0,0.00013895,2]
[384811263,1757568641654,-151.0,0.00013895,2]
[384811264,1757568641663,-154.281428,0.00013895,2]
[384811265,1757568641672,-151.0,0.00013895,2]
[384811266,1757568641681,-179.668161,0.00013895,2]
[384811267,1757568641690,-179.668161,0.00013895,2]
[384811268,1757568641699,-179.668161,0.00013895,2]
[384811269,1757568641709,-179.668161,0.00013895,2]
[384811270,1757568641718,-601.606064,0.00013895,2]
[384811271,1757568641727,-601.606064,0.00013895,2]
[384811272,1757568641737,-601.606064,0.00013895,2]
[384811273,1757568641746,-601.606064,0.00013895,2]
[384811274,1757568641756,-386.39085572,0.00013895,2]
[384811275,1757568641765,-151.0,0.00013895,2]
[384811276,1757568641774,-181.295845,0.00013895,2]
[384811277,1757568641783,-151.0,0.00013895,2]
[384811278,1757568641792,-151.0,0.00013895,2]
[384811279,1757568641801,-151.0,0.00013895,2]
[384811280,1757568641810,-151.0,0.00013895,2]
[384811281,1757568641819,-480.0,0.00013895,2]
[384811282,1757568641828,-298.227995,0.00013895,2]
[384811283,1757568641838,-298.227995,0.00013895,2]
[384811284,1757568641847,-298.227995,0.00013895,2]
[384811285,1757568641857,-480.0,0.00013895,2]
[384811286,1757568641866,-298.227995,0.00013895,2]
[384811287,1757568641875,-151.898926,0.00013895,2]
[384811288,1757568641884,-151.0,0.00013895,2]
[384811289,1757568641894,-151.0,0.00013895,2]
[384811290,1757568641903,-480.0,0.00013895,2]
[384811291,1757568641912,-481.47509649,0.00013895,2]
[384811292,1757568641921,-480.0,0.00013895,2]
[384811293,1757568641930,-193.206233,0.00013895,2]
[384811294,1757568641939,-193.206233,0.00013895,2]
[384811295,1757568641948,-126.75373943,0.00013895,2]
[384811296,1757568641959,-66.45249357,0.00013895,2]
[384811297,1757568641968,-193.206233,0.00013895,2]
[384811298,1757568641978,-480.0,0.00013895,2]
[384811299,1757568641987,-146.30804859,0.00013895,2]
[384811300,1757568641998,-333.69195141,0.00013895,2]
[384811301,1757568642007,-545.27,0.00013896,2]
[384811302,1757568642016,-151.0,0.00013897,2]
[384811303,1757568642025,-151.0,0.00013897,2]
[384811304,1757568642035,-480.0,0.00013898,2]
[384811305,1757568642044,-491.17451564,0.00013898,2]
[384811306,1757568642053,-480.0,0.00013898,2]
[384811307,1757568642062,-480.0,0.00013898,2]
[384811308,1757568642071,-45.28896335,0.00013898,2]
[384811309,1757568642082,-434.71103665,0.00013898,2]
[384811310,1757568642091,-487.61023768,0.00013898,2]
[384811311,1757568642101,-480.0,0.00013898,2]
[384811312,1757568642110,-480.0,0.00013898,2]
[384811313,1757568642119,-480.0,0.00013898,2]
[384811314,1757568642128,-480.0,0.00013898,2]
[384811315,1757568642138,-480.0,0.00013898,2]
[384811316,1757568642147,-480.0,0.00013898,2]
[384811317,1757568642156,-234.56262043,0.00013898,2]
[384811318,1757568642165,-481.01574159,0.00013898,2]
[384811319,1757568642174,-480.0,0.00013898,2]
[384811320,1757568642183,-480.0,0.00013898,2]
[384811321,1757568642192,-168.373023,0.00013898,2]
[384811322,1757568642201,-489.89698943,0.00013898,2]
[384811323,1757568642210,-480.0,0.00013898,2]
[384811324,1757568642220,-480.0,0.00013898,2]
[384811325,1757568642229,-480.0,0.00013898,2]
[384811326,1757568642239,-480.0,0.00013898,2]
[384811327,1757568642248,-480.0,0.00013898,2]
[384811328,1757568642257,-488.97644165,0.00013898,2]
[384811329,1757568642267,-480.0,0.00013898,2]
[384811330,1757568642276,-482.53806226,0.00013898,2]
[384811331,1757568642285,-480.0,0.00013898,2]
[384811332,1757568642294,-481.77010443,0.00013898,2]
[384811333,1757568642303,-480.0,0.00013898,2]
[384811334,1757568642312,-480.0,0.00013898,2]
[384811335,1757568642322,-480.0,0.00013898,2]
[384811336,1757568642331,-480.0,0.00013898,2]
[384811337,1757568642340,-480.0,0.00013898,2]
[384811338,1757568642350,-480.0,0.00013898,2]
[384811339,1757568642358,-480.0,0.00013898,2]
[384811340,1757568642367,-480.0,0.00013898,2]
[384811341,1757568642377,-480.0,0.00013898,2]
[384811342,1757568642386,-480.0,0.00013898,2]
[384811343,1757568642395,-484.51457063,0.00013898,2]
[384811344,1757568642405,-361.68629033,0.00013898,2]
[384811345,1757568642415,-480.0,0.00013898,2]
[384811346,1757568642425,-480.0,0.00013898,2]
[384811347,1757568642434,-480.0,0.00013898,2]
[384811348,1757568642443,-483.9140561,0.00013898,2]